fUST/lending_fUST_20251103
["ID","MTS","AMOUNT","RATE_DAILY","PERIOD"]
[392926375,1762150246974,-151.0,0.0003719,31]
[392926376,1762150246985,-158.402953,0.0003719,31]
[392926377,1762150246996,-271.78711905,0.000372,120]
[392926378,1762150247008,-200.0,0.00037208,120]
[392926379,1762150247019,-9885.15739017,0.00037246,2]
[392926380,1762150247031,-150.8,0.00037252,60]
[392926381,1762150247043,-1621.32,0.00037255,60]
[392926382,1762150247054,-500.0,0.0003726,2]
[392926383,1762150247066,-1010.0,0.0003726,120]
[392926384,1762150247076,-500.0,0.0003726,2]
[392926385,1762150247086,-500.0,0.000373,30]
[392926386,1762150247098,-389.13559018,0.000373,2]
[392926387,1762150247111,-1000.0,0.00037342,20]
[392926388,1762150247123,-1000.0,0.00037342,20]
[392926389,1762150247134,-1000.0,0.00037342,20]
[392926390,1762150247145,-1000.0,0.00037342,20]
[392926391,1762150247156,-1000.0,0.00037342,20]
[392926392,1762150247167,-1000.0,0.00037342,20]
[392926393,1762150247178,-1000.0,0.00037342,20]
[392926394,1762150247188,-1000.0,0.00037342,20]
[392926395,1762150247201,-1000.0,0.00037342,20]
[392926396,1762150247212,-1000.0,0.00037342,20]
[392926397,1762150247224,-1000.0,0.00037344,20]
[392926398,1762150247236,-151.42696347,0.00037345,14]
[392926399,1762150247247,-151.0,0.00037345,31]
[392926400,1762150247259,-151.0,0.00037345,31]
[392926401,1762150247269,-151.0,0.00037345,31]
[392926402,1762150247280,-151.0,0.00037345,31]
[392926403,1762150247290,-151.0,0.00037345,31]
[392926404,1762150247300,-151.0,0.00037345,31]
[392926405,1762150247310,-151.0,0.00037345,31]
[392926406,1762150247320,-151.0,0.00037345,31]
[392926407,1762150247332,-151.0,0.00037345,31]
[392926408,1762150247344,-241.425815,0.00037345,31]
[392926409,1762150247355,-151.0,0.00037345,31]
[392926410,1762150247364,-151.0,0.00037345,31]
[392926411,1762150247376,-151.0,0.00037345,2]
[392926412,1762150247386,-159.185597,0.00037345,2]
[392926413,1762150247398,-1021.28274575,0.00037346,2]
[392926414,1762150247408,-5505.23829636,0.00037346,7]
[392926415,1762150247419,-226.83129008,0.00037346,15]
[392926416,1762150247429,-241.43272915,0.00037346,10]
[392926417,1762150247440,-195.76204269,0.00037346,12]
[392926418,1762150247450,-4462.68229578,0.00037346,8]
[392926419,1762150247461,-1100.28083004,0.00037346,10]
[392926420,1762150247471,-10197.12530797,0.00037346,10]
[392926421,1762150247483,-2503.6780579,0.00037346,7]
[392926422,1762150247495,-3100.0,0.00037346,7]
[392926423,1762150247507,-1990.53200404,0.00037346,7]
[392926424,1762150247519,-200.0,0.00037346,10]
[392926425,1762150247530,-10636.8601984,0.00037346,7]
[392926426,1762150247541,-498.0,0.00037346,7]
[392926427,1762150247552,-26112.3020539,0.00037346,12]
[392926428,1762150247564,-1548.9081507,0.00037346,14]
[392926429,1762150247575,-154.95732654,0.00037346,7]
[392926430,1762150247585,-817.42585855,0.00037346,15]
[392926431,1762150247595,-1529.10626777,0.00037346,15]
[392926432,1762150247606,-3673.0063679,0.00037346,7]
[392926433,1762150247616,-13273.52142253,0.00037346,5]
[392926434,1762150247626,-2528.79482178,0.00037346,7]
[392926435,1762150247636,-177.20639184,0.00037346,7]
[392926436,1762150247646,-158.0,0.00037346,10]
[392926437,1762150247657,-1948.59528611,0.00037346,5]
[392926438,1762150247668,-1000.0,0.00037346,15]
[392926439,1762150247679,-200.31869128,0.00037346,3]
[392926440,1762150247691,-896.22961364,0.00037346,2]
[392926441,1762150247708,-654.41536776,0.00037346,2]
[392926442,1762150247723,-4905.31990758,0.00037346,2]
[392926444,1762150277849,514.04948893,0.00037346,60]
[392926449,1762150346467,530.26280526,0.00037346,60]
[392926450,1762150355791,534.42457658,0.00037346,21]
[392926451,1762150359148,500.0,0.00037346,60]
[392926452,1762150373114,565.57841195,0.00037346,60]
[392926453,1762150380624,506.92692945,0.00037346,60]
[392926454,1762150381467,171.39706931,0.00037346,60]
[392926455,1762150393968,507.36877991,0.00037346,60]
[392926456,1762150395767,500.0,0.00037346,60]
[392926457,1762150396449,513.94648272,0.00037346,60]
[392926458,1762150398304,500.0,0.00037346,60]
[392926459,1762150399679,528.788372,0.00037346,60]
[392926460,1762150400790,522.73843364,0.00037346,60]
[392926461,1762150401733,509.1202194,0.00037346,60]
[392926462,1762150403460,506.68626255,0.00037346,60]
[392926463,1762150406884,500.0,0.00037346,60]
[392926464,1762150407137,500.0,0.00037346,60]
[392926465,1762150407380,500.0,0.00037346,60]
[392926466,1762150407629,500.0,0.00037346,60]
[392926467,1762150407733,522.95229636,0.00037346,60]
[392926468,1762150407862,500.0,0.00037346,60]
[392926469,1762150408104,533.37798683,0.00037346,60]
[392926470,1762150410345,500.0,0.00037346,60]
[392926471,1762150410602,500.0,0.00037346,60]
[392926472,1762150410849,500.0,0.00037346,60]
[392926473,1762150411087,500.0,0.00037346,60]
[392926474,1762150411342,500.0,0.00037346,60]
[392926475,1762150411578,500.0,0.00037346,60]
[392926476,1762150411852,500.0,0.00037346,60]
[392926477,1762150412042,500.0,0.00037346,60]
[392926478,1762150412110,558.90695406,0.00037346,60]
[392926479,1762150412274,500.0,0.00037346,60]
[392926480,1762150412722,500.0,0.00037346,60]
[392926481,1762150416264,500.00000001,0.00037346,60]
[392926482,1762150419563,500.0,0.00037346,60]
[392926483,1762150419791,500.0,0.00037346,60]
[392926484,1762150422895,645.59342761,0.00037346,60]
[392926485,1762150430788,632.78517878,0.00037342,60]
[392926486,1762150439122,501.60982476,0.00037342,60]
[392926487,1762150443203,511.3337685,0.00037342,60]
[392926488,1762150448867,532.6570565,0.00037342,60]
[392926489,1762150450983,500.0,0.00037342,60]
[392926490,1762150451660,516.35521939,0.00037342,60]
[392926491,1762150453227,515.36400022,0.00037342,60]
[392926492,1762150453527,502.80498965,0.00037342,60]
[392926493,1762150464152,644.5274405,0.00037342,60]
[392926494,1762150470096,509.16553057,0.00037342,60]
[392926495,1762150471953,518.67686441,0.00037342,60]
[392926496,1762150473912,502.93276082,0.00037342,60]
[392926497,1762150474478,3471.25,0.000184,2]
[392926498,1762150479222,508.46723068,0.00037342,60]
[392926499,1762150481300,507.10487406,0.00037342,60]
[392926500,1762150483477,506.5913421,0.00037342,60]
[392926643,1762151249131,-150.0,0.00025376,2]
[392926644,1762151249154,-177.0,0.00027376,2]
[392926645,1762151249174,-834.34549371,0.00028644,2]
[392926646,1762151249196,-500.0,0.00028744,60]
[392926647,1762151249215,-379.42440938,0.00028744,60]
[392926648,1762151249235,-300.0,0.00028925,2]
[392926649,1762151249256,-1200.0,0.00028926,2]
[392926650,1762151249275,-637.537,0.00028927,2]
[392926651,1762151249294,-517.84521028,0.00028927,2]
[392926682,1762151294768,630.72,0.00037342,30]
[392926730,1762151432100,-156.0,0.00026795,14]
[392926731,1762151432110,-96.66616529,0.0002739,2]
[392926732,1762151432122,-102.44017884,0.0002739,2]
[392926733,1762151432132,-362.91010721,0.0002739,2]
[392926734,1762151432144,-221.08989279,0.0002739,2]
[392926735,1762151432154,-404.18480381,0.00028634,2]
[392926736,1762151432164,-160.0,0.00028634,2]
[392926737,1762151432173,-300.0,0.00028926,2]
[392926739,1762151432183,-130.5830052,0.00028927,2]
[392926755,1762151437796,-150.0,0.0002589,2]
[392926756,1762151437819,-177.0,0.0002789,2]
[392926757,1762151437832,-336.57178452,0.00028927,2]
[392926758,1762151437843,-2164.0,0.00028927,2]
[392926759,1762151437854,-160.0,0.00028927,2]
[392926760,1762151437865,-500.0,0.00029317,60]
[392926761,1762151437875,-204.0,0.0002989,2]
[392926762,1762151437886,-420.0,0.00031211,2]
[392926763,1762151437896,-231.0,0.0003189,2]
[392926764,1762151437907,-162.858639,0.00032605,60]
[392926765,1762151437918,-500.0,0.00032693,60]
[392926766,1762151437928,-262.0,0.00033675,2]
[392926767,1762151437939,-258.0,0.0003389,120]
[392926768,1762151437948,-168.0,0.00034984,2]
[392926769,1762151437958,-168.0,0.00035234,2]
[392926770,1762151437968,-168.0,0.00035439,2]
[392926771,1762151437978,-2600.0,0.00035601,7]
[392926772,1762151437988,-264.35896738,0.00035843,14]
[392926773,1762151437998,-285.0,0.0003589,120]
[392926774,1762151438008,-181.709,0.0003589,43]
[392926775,1762151438018,-168.0,0.00036221,2]
[392926776,1762151438028,-2600.0,0.00036423,7]
[392926777,1762151438039,-500.0,0.0003657,30]
[392926778,1762151438050,-500.0,0.0003657,30]
[392926779,1762151438061,-725.12930943,0.00036886,2]
[392926780,1762151438071,-161.27,0.00036946,17]
[392926781,1762151438083,-416.73310623,0.00036985,15]
[392926782,1762151438093,-500.0,0.00036985,2]
[392926783,1762151438103,-2720.4310715,0.00036986,10]
[392926784,1762151438117,-3000.0,0.00036986,10]
[392926814,1762151485863,500.0,0.00037342,60]
[392926815,1762151492712,549.83983615,0.00037342,60]
[392926816,1762151496364,500.0,0.00037342,60]
[392926847,1762151634286,500.0,0.00037342,60]
[392926849,1762151634596,500.0,0.00037342,60]
[392926857,1762151650282,500.0,0.00037342,60]
[392926859,1762151652104,500.0,0.00037342,60]
[392926860,1762151652343,200.82,0.00037342,60]
[392926862,1762151654530,500.0,0.00037342,60]
[392926867,1762151664875,500.0,0.00037342,60]
[392926876,1762151675568,500.0,0.00037342,60]
[392926878,1762151677529,500.0,0.00037342,60]
[392926879,1762151677717,276.890738,0.00037342,60]
[392926880,1762151679383,500.0,0.00037342,60]
[392926881,1762151680795,500.0,0.00037342,60]
[392926902,1762151711787,254.48925779,0.00037342,60]
[392926905,1762151717727,151.0,0.00037342,60]
[392926906,1762151718387,156.587,0.00037342,60]
[392926908,1762151719074,162.380719,0.00037342,60]
[392926909,1762151719723,168.3888056,0.00037342,60]
[392926910,1762151720363,174.61919141,0.00037342,60]
[392926911,1762151721045,181.08010149,0.00037342,60]
[392926912,1762151721457,500.0,0.00037342,60]
[392926913,1762151721680,187.78006525,0.00037342,60]
[392926935,1762151840483,500.0,0.00037342,60]
[392926936,1762151840929,500.0,0.00037342,60]
[392926937,1762151841174,565.402135,0.00037342,60]
[392926944,1762151944856,378.84177705,0.00037345,60]
[392926949,1762151968965,477.202633,0.00013699,2]
[392926950,1762151974889,183.2218366,0.00037345,20]
[392926957,1762152003443,500.0,0.00037345,60]
[392926958,1762152003701,500.0,0.00037345,60]
[392926960,1762152003939,500.0,0.00037345,60]
[392926961,1762152004180,625.56428321,0.00037345,60]
[392926963,1762152013758,177.16411725,0.00037345,60]
[392927095,1762152428137,-3000.0,0.00019987,2]
[392927096,1762152428160,-150.0,0.00019987,2]
[392927097,1762152428184,-151.0,0.00019987,2]
[392927098,1762152428210,-151.0,0.00019987,2]
[392927099,1762152428232,-189.6034007,0.00019987,2]
[392927100,1762152428254,-236.96786184,0.00019999,2]
[392927194,1762152486998,6000.0,0.00032,120]
[392927211,1762152568099,-291.73811115,0.00019799,2]
[392927212,1762152568120,-500.0,0.00019999,2]
[392927213,1762152568141,-217.0,0.00019999,2]
[392927214,1762152568162,-500.0,0.00019999,2]
[392927215,1762152568183,-500.0,0.00019999,2]
[392927216,1762152568204,-8509.16438333,0.0002,7]
[392927265,1762152632172,-841.6034007,0.0002,7]
[392927267,1762152632184,-2208.92547773,0.0002,7]
[392927269,1762152632196,-14728.30673824,0.0002,7]
[392927271,1762152632206,-477.202633,0.00020187,2]
[392927273,1762152632215,-3000.0,0.00021,7]
[392927275,1762152632224,-634.48814576,0.00021887,2]
[392927277,1762152632233,-177.0,0.00021987,2]
[392927279,1762152632243,-204.0,0.00023987,2]
[392927281,1762152632252,-231.0,0.00025987,2]
[392927283,1762152632261,-477.202633,0.00026676,2]
[392927285,1762152632270,-258.0,0.00027987,2]
[392927287,1762152632279,-634.48814575,0.00027995,2]
[392927289,1762152632288,-404.18480381,0.00029255,2]
[392927291,1762152632299,-160.0,0.00029255,2]
[392927293,1762152632309,-285.0,0.00029987,2]
[392927295,1762152632318,-181.709,0.00030623,26]
[392927297,1762152632327,-503.58783103,0.000318,7]
[392927299,1762152632337,-312.0,0.00031987,2]
[392927302,1762152632346,-477.202633,0.00033165,2]
[392927305,1762152632355,-150.493098,0.00033945,2]
[392927308,1762152632365,-288.83612007,0.00033987,120]
[392927309,1762152632374,-634.48814575,0.00034103,2]
[392927311,1762152632384,-998.3028851,0.00034951,2]
[392927313,1762152632393,-168.0,0.00034952,2]
[392927315,1762152632402,-2200.0,0.00035601,7]
[392927317,1762152632411,-500.0,0.00035616,2]
[392927319,1762152632420,-168.0,0.00035813,2]
[392927321,1762152632429,-500.0,0.0003589,2]
[392927323,1762152632438,-168.0,0.00036133,2]
[392927325,1762152632447,-500.0,0.00036164,2]
[392927327,1762152632456,-168.0,0.00036195,2]
[392927329,1762152632465,-500.0,0.0003642,30]
[392927331,1762152632477,-500.0,0.0003642,30]
[392927333,1762152632486,-462.83041633,0.0003642,30]
[392927335,1762152632495,-2200.0,0.00036423,7]
[392927337,1762152632505,-500.0,0.00036438,2]
[392927339,1762152632514,-153.0,0.0003661,30]
[392927340,1762152632523,-153.0,0.0003661,30]
[392927341,1762152632532,-153.0,0.0003661,30]
[392927343,1762152632542,-153.0,0.0003661,30]
[392927344,1762152632554,-153.0,0.0003661,30]
[392927345,1762152632564,-274.4787788,0.0003661,30]
[392927346,1762152632574,-500.0,0.00036658,2]
[392927348,1762152632583,-168.0,0.00036659,2]
[392927349,1762152632592,-500.0,0.00036712,2]
[392927351,1762152632601,-161.27,0.00036836,17]
[392927353,1762152632610,-2414.98,0.0003698,10]
[392927354,1762152632619,-2012.48,0.0003698,10]
[392927356,1762152632629,-1677.07,0.0003698,10]
[392927358,1762152632639,-6779.5689285,0.00036986,10]
[392927360,1762152632648,-7955.82113921,0.00036986,10]
[392927362,1762152632656,-606.46,0.00036986,2]
[392927364,1762152632665,-167.11340485,0.00036986,2]
[392927366,1762152632679,-27361.02996102,0.0003699,2]
[392927368,1762152632688,-34183.0587975,0.0003699,3]
[392927370,1762152632697,-170.2304925,0.0003699,3]
[392927372,1762152632706,-263.03213816,0.00036999,2]
[392927374,1762152632715,-15729.9133495,0.00037,2]
[392927376,1762152632725,-1455.65,0.00037,2]
[392927378,1762152632734,-1000.0,0.00037,2]
[392927380,1762152632743,-37469.9931223,0.00037,120]
[392927382,1762152632752,-151.0,0.00037,31]
[392927384,1762152632761,-151.0,0.00037,31]
[392927386,1762152632770,-151.0,0.00037,30]
[392927388,1762152632779,-151.0,0.00037,30]
[392927389,1762152632788,-151.0,0.00037,30]
[392927391,1762152632800,-317.8113936,0.00037025,2]
[392927393,1762152632809,-317.81139357,0.00037028,2]
[392927396,1762152632819,-317.81139357,0.00037031,2]
[392927397,1762152632827,-317.81139357,0.00037033,2]
[392927399,1762152632836,-317.81139357,0.00037036,2]
[392927401,1762152632846,-322.54,0.0003705,17]
[392927403,1762152632860,-322.54,0.0003707,17]
[392927405,1762152632869,-158.732674,0.00037125,2]
[392927407,1762152632879,-158.732674,0.00037125,2]
[392927409,1762152632889,-158.732674,0.00037125,2]
[392927411,1762152632899,-158.732674,0.00037125,2]
[392927413,1762152632908,-151.0,0.00037125,31]
[392927415,1762152632918,-151.0,0.00037125,31]
[392927417,1762152632927,-151.0,0.00037125,30]
[392927419,1762152632938,-151.0,0.00037125,30]
[392927421,1762152632947,-211.095192,0.00037125,30]
[392927423,1762152632957,-106840.82218117,0.00037126,3]
[392927467,1762152637972,-753.94,0.0002,2]
[392927469,1762152637982,-733.94735007,0.00029,2]
[392927477,1762152638057,-762.98972031,0.00029,2]
[392927480,1762152638070,-596.01027969,0.00029,2]
[392927488,1762152638143,-1735.1169272,0.00029,2]
[392927490,1762152638153,-291.71317436,0.00035259,7]
[392927492,1762152638163,-243.982455,0.00037,31]
[392927494,1762152638172,-19717.15965096,0.00037126,3]
[392927496,1762152638184,-14763.74848924,0.00037126,3]
[392927680,1762152640251,-61166.29211149,0.00037126,3]
[392927889,1762152646363,-412.0,0.00030788,2]
[392927890,1762152646373,-412.0,0.00033788,2]
[392927891,1762152646382,-36793.38914914,0.00037126,3]
[392927892,1762152646392,-2553.4573875,0.00037126,3]
[392927893,1762152646401,-1397.56,0.00037126,10]
[392927894,1762152646410,-138989.31630904,0.00037136,2]
[392927902,1762152744106,500.0,0.00037345,60]
[392927904,1762152752921,501.0409205,0.00037345,60]
[392927905,1762152754669,500.0,0.00037345,60]
[392927907,1762152761171,500.0,0.00037345,60]
[392927944,1762152793949,500.0,0.00037345,60]
[392927945,1762152794191,500.0,0.00037345,60]
[392927946,1762152794423,499.98,0.00037345,60]
[392927948,1762152850219,500.0,0.00037344,60]
[392927949,1762152850457,500.0,0.00037344,60]
[392927950,1762152850701,500.0,0.00037344,60]
[392927951,1762152850943,500.0,0.00037344,60]
[392927952,1762152851187,500.0,0.00037344,60]
[392927953,1762152851414,500.0,0.00037344,60]
[392927954,1762152851646,500.0,0.00037344,60]
[392927955,1762152852207,500.0,0.00037344,60]
[392927957,1762152852461,500.0,0.00037344,60]
[392927958,1762152852701,500.0,0.00037344,60]
[392927959,1762152852945,542.17839832,0.00037344,60]
[392928732,1762153181895,500.0,0.00037345,60]
[392928733,1762153182124,500.0,0.00037345,60]
[392928734,1762153182390,500.0,0.00037345,60]
[392928735,1762153182631,500.0,0.00037345,60]
[392928736,1762153182885,500.0,0.00037345,60]
[392928738,1762153183118,500.0,0.00037345,60]
[392928739,1762153183350,500.0,0.00037345,60]
[392928741,1762153183637,500.0,0.00037345,60]
[392928742,1762153183861,500.0,0.00037345,60]
[392928744,1762153184094,500.0,0.00037345,60]
[392928745,1762153184365,500.0,0.00037345,60]
[392928746,1762153184602,500.0,0.00037345,60]
[392928747,1762153184849,500.0,0.00037345,60]
[392928748,1762153185099,500.0,0.00037345,60]
[392928749,1762153185713,500.0,0.00037345,60]
[392928750,1762153185957,500.0,0.00037345,60]
[392928751,1762153186278,497.8,0.00037345,60]
[392929538,1762153652135,-500.0,0.00019999,2]
[392929539,1762153652156,-500.0,0.00019999,2]
[392929540,1762153652176,-283.0,0.00019999,2]
[392929541,1762153652198,-150.0,0.0002,2]
[392929542,1762153652218,-502.39613518,0.0002,2]
[392929543,1762153652238,-177.0,0.00022,2]
[392929544,1762153652258,-160.0,0.0002247,2]
[392929545,1762153652277,-160.0,0.0002247,2]
[392929546,1762153652297,-231.0,0.00024,2]
[392929547,1762153652317,-1200.0,0.00026848,2]
[392929548,1762153652336,-9828.9797909,0.00029331,2]
[392929549,1762153652356,-156.0,0.00030789,2]
[392929551,1762153652375,-412.0,0.00030789,2]
[392929552,1762153652395,-5547.61557709,0.00031657,2]
[392929837,1762153838233,-300.0,0.00025,2]
[392929842,1762153838273,-39.72894042,0.00025,2]
[392929844,1762153838283,-4281.36421381,0.00031657,2]
[392929846,1762153838292,-500.0,0.00033634,7]
[392929848,1762153838302,-221.23648362,0.00033634,7]
[392929850,1762153838312,-342.0,0.00033981,3]
[392929852,1762153838321,-300.0,0.00033981,2]
[392929854,1762153838342,-375.0,0.00033981,3]
[392929856,1762153838352,-185.9943264,0.00033983,3]
[392929868,1762153838693,-2200.8879448,0.00033983,3]
[392929869,1762153838706,-2036.89627199,0.00033983,3]
[392929877,1762153840595,-520.7817423,0.00033983,3]
[392929878,1762153840607,-4884.41950541,0.00033983,3]
[392929879,1762153840616,-1900.0,0.00035601,7]
[392929880,1762153840626,-9828.9797909,0.00036309,3]
[392929881,1762153840635,-204.19922206,0.00036422,15]
[392929882,1762153840646,-1900.0,0.00036423,7]
[392929883,1762153840655,-500.0,0.00036509,60]
[392929884,1762153840664,-500.0,0.00036509,60]
[392929886,1762153840674,-404.18480381,0.00036677,2]
[392929888,1762153840684,-181.71074445,0.00036869,46]
[392929890,1762153840694,-500.0,0.00036869,60]
[392929891,1762153840703,-27461.0,0.0003687,30]
[392929893,1762153840712,-581.19,0.00036986,2]
[392929895,1762153840722,-581.19,0.00036986,2]
[392929897,1762153840731,-581.19,0.00036986,2]
[392929899,1762153840740,-581.19,0.00036986,2]
[392929901,1762153840749,-581.19,0.00036986,2]
[392929903,1762153840758,-581.19,0.00036986,2]
[392929904,1762153840767,-500.0,0.00036998,60]
[392929906,1762153840777,-500.0,0.00036999,60]
[392929908,1762153840786,-500.0,0.00036999,60]
[392929910,1762153840799,-11556.01223009,0.00037,120]
[392929911,1762153840808,-888.3185658,0.00037002,2]
[392929912,1762153840818,-58382.89429155,0.00037015,3]
[392930068,1762153846338,-253.7425319,0.0003211,2]
[392930069,1762153846466,-158.2574681,0.0003211,2]
[392930070,1762153846476,-3142.9425319,0.00037015,3]
[392930145,1762153902095,500.0,0.00037347,30]
[392930241,1762153986231,522.500359,0.00037347,60]
[392930365,1762154115776,151.0,0.00037347,60]
[392930366,1762154116387,156.587,0.00037347,60]
[392930368,1762154117091,162.380719,0.00037347,60]
[392930370,1762154117826,168.3888056,0.00037347,60]
[392930372,1762154118448,174.61919141,0.00037347,60]
[392930373,1762154119188,181.08010149,0.00037347,60]
[392930375,1762154119820,187.78006525,0.00037347,60]
[392930376,1762154120476,194.72792766,0.00037347,60]
[392930377,1762154121100,201.93286099,0.00037347,60]
[392930380,1762154121752,209.40437684,0.00037347,60]
[392930381,1762154122589,217.15233878,0.00037347,60]
[392930383,1762154123192,225.18697532,0.00037347,60]
[392930384,1762154123822,233.51889341,0.00037347,60]
[392930385,1762154124444,242.15909246,0.00037347,60]
[392930386,1762154125259,242.15909246,0.00037347,60]
[392930674,1762154378523,500.0,0.00037348,60]
[392930675,1762154378763,500.0,0.00037348,60]
[392930677,1762154379008,500.0,0.00037348,60]
[392930679,1762154379285,500.0,0.00037348,60]
[392930680,1762154379499,500.0,0.00037348,60]
[392930681,1762154379722,500.0,0.00037348,60]
[392930682,1762154379958,500.0,0.00037348,60]
[392930683,1762154380208,500.0,0.00037348,60]
[392930684,1762154380435,500.0,0.00037348,60]
[392930685,1762154380674,500.0,0.00037348,60]
[392930686,1762154380912,500.0,0.00037348,60]
[392930687,1762154381153,500.0,0.00037348,60]
[392930689,1762154381398,500.0,0.00037348,60]
[392930690,1762154381665,500.0,0.00037348,60]
[392930691,1762154381909,500.0,0.00037348,60]
[392930692,1762154382145,500.0,0.00037348,60]
[392930693,1762154382419,500.0,0.00037348,60]
[392930694,1762154382658,500.0,0.00037348,60]
[392930695,1762154382894,500.0,0.00037348,120]
[392930696,1762154383138,419.9,0.00037348,120]
[392932525,1762154906459,173.0,1.02e-06,2]
[392932527,1762154907522,173.0,1.02e-06,2]
[392932528,1762154908739,173.0,1.02e-06,2]
[392932537,1762154939081,476.901306,0.00013699,2]
[392932539,1762154973149,-476.901306,0.00020187,2]
[392932540,1762154973169,-150.0,0.00025291,2]
[392932542,1762155001516,171.344954,0.00025885,2]
[392932576,1762155032573,-645.0,0.00025884,2]
[392932579,1762155032584,-4828.655046,0.00025885,2]
[392932581,1762155032593,-504.0,0.00025885,2]
[392932584,1762155032603,-5000.0,0.00026146,2]
[392932587,1762155032611,-227.0,0.00026409,2]
[392932589,1762155032621,-5000.0,0.0002641,2]
[392932591,1762155032630,-476.901306,0.00026676,2]
[392932593,1762155032639,-188.0,0.00026822,14]
[392932595,1762155032648,-177.0,0.00027291,2]
[392932596,1762155032657,-204.0,0.00029291,2]
[392932597,1762155032666,-380.0,0.00031933,2]
[392932598,1762155032676,-47851.18389511,0.00031933,2]
[392932600,1762155032685,-1200.0,0.00032093,3]
[392932601,1762155032695,-5901.71219321,0.00032094,2]
[392932602,1762155032704,-476.901306,0.00033165,2]
[392932603,1762155032713,-5901.71219321,0.00033993,2]
[392932604,1762155032722,-341.01523515,0.0003426,7]
[392932605,1762155032731,-502.73788384,0.00034273,2]
[392932606,1762155032741,-1400.0,0.00035601,7]
[392932607,1762155032752,-3706.46051641,0.00035893,3]
[392932608,1762155032764,-2195.2516768,0.00035893,3]
[392932609,1762155032774,-316.3668753,0.00036069,30]
[392932610,1762155032784,-800.54045205,0.00036098,2]
[392932611,1762155032794,-800.54045202,0.00036109,2]
[392932612,1762155032803,-800.54045202,0.0003612,2]
[392932613,1762155032813,-800.54045202,0.0003613,2]
[392932614,1762155032822,-800.54045202,0.00036141,2]
[392932615,1762155032831,-404.18480381,0.00036194,2]
[392932616,1762155032840,-14571.48638394,0.00036198,3]
[392932617,1762155032851,-7585.40673366,0.00036198,3]
[392932765,1762155043570,-5000.0,0.00024953,2]
[392932766,1762155043580,-238.7106646,0.00031932,2]
[392932767,1762155043589,-1164.63,0.00036188,10]
[392932768,1762155043598,-24711.64574809,0.00036198,3]
[392932771,1762155046684,-5000.0,0.00024953,2]
[392932772,1762155046694,-2055.45555945,0.00036198,3]
[392932773,1762155046751,-1437.1938843,0.00036198,3]
[392932774,1762155046762,-183984.91184356,0.00036198,3]
[392932775,1762155046771,-226.97399002,0.00036198,3]
[392932776,1762155046781,-500.0,0.00036198,120]
[392932777,1762155046790,-500.0,0.00036198,120]
[392932778,1762155046799,-500.0,0.00036198,120]
[392932779,1762155046808,-500.0,0.00036198,120]
[392932780,1762155046817,-500.0,0.00036198,120]
[392932781,1762155046826,-500.0,0.00036198,120]
[392932782,1762155046835,-364660.97109692,0.00036208,2]
[392932783,1762155046847,-727.30268201,0.00036208,2]
[392932788,1762155129185,390.64791097,0.00037348,60]
[392932789,1762155138946,5244.0,0.00037348,20]
[392932790,1762155143841,500.0,0.00037348,60]
[392932792,1762155160264,589.59,0.00037348,60]
[392932793,1762155166577,500.0,0.00037348,60]